bitfinex-derivatives/quotes_BNBF0:USTF0_20250315
["timestamp","ask_amount","ask_price","bid_price","bid_amount"]
[1742042406826,0.2829355,598.3,597.3,10.491]
[1742042409328,0.2829355,598.29,597.3,10.491]
[1742042409526,0.61722713,598.28,597.3,10.491]
[1742042409823,0.61723272,598.27,597.3,10.491]
[1742042410020,0.61723831,598.26,597.3,10.491]
[1742042410220,0.2829355,598.25,597.3,10.491]
[1742042410422,0.28299891,598.24,597.3,10.491]
[1742042410625,0.28299891,598.25,597.3,10.491]
[1742042410826,0.61731289,598.24,597.3,10.491]
[1742042411130,0.28299891,598.23,597.3,10.491]
[1742042411328,0.61732407,598.22,597.3,10.491]
[1742042411526,0.61732966,598.21,597.3,10.491]
[1742042411724,0.61733525,598.2,597.3,10.491]
[1742042412028,0.61734084,598.19,597.3,10.491]
[1742042412227,0.33434193,598.19,597.3,10.491]
[1742042412530,0.283003,598.18,597.3,10.491]
[1742042414131,0.28299307,598.17,597.3,10.491]
[1742042414332,0.28299307,598.18,597.3,10.491]
[1742042414631,0.28299307,598.17,597.3,10.491]
[1742042414931,0.28299307,598.16,597.3,10.491]
[1742042415231,0.28299307,598.15,597.3,10.491]
[1742042415427,0.28299307,598.18,597.3,10.491]
[1742042415830,0.28299797,598.17,597.3,10.491]
[1742042416130,0.33434193,598.19,597.3,10.491]
[1742042416131,0.28299797,598.16,597.3,10.491]
[1742042416324,0.28299797,598.18,597.3,10.491]
[1742042417524,0.28300235,598.17,597.3,10.491]
[1742042417726,0.28300235,598.18,597.3,10.491]
[1742042417926,0.61735546,598.17,597.3,10.491]
[1742042418232,0.28300235,598.16,597.3,10.491]
[1742042418429,0.61736105,598.16,597.3,10.491]
[1742042418627,0.28300235,598.15,597.3,10.491]
[1742042419634,0.33436987,598.14,597.3,10.491]
[1742042419829,0.28300235,598.13,597.3,10.491]
[1742042420032,0.33438106,598.12,597.3,10.491]
[1742042420234,0.28300235,598.11,597.3,10.491]
[1742042420429,0.33439224,598.1,597.3,10.491]
[1742042420631,0.28300235,598.09,597.3,10.491]
[1742042423235,0.28300984,598.08,597.3,10.491]
[1742042423434,0.28300984,598.09,597.3,10.491]
[1742042423635,0.28300984,598.08,597.3,10.491]
[1742042423935,0.28300558,598.07,597.3,10.491]
[1742042424130,0.28300558,598.09,597.3,10.491]
[1742042424335,0.28300558,598.08,597.3,10.491]
[1742042424535,0.28300558,598.09,597.3,10.491]
[1742042425036,0.33439224,598.1,597.3,10.491]
[1742042425235,0.28299997,598.09,597.3,10.491]
[1742042428636,0.33439224,598.1,597.3,10.491]
[1742042428836,0.28299584,598.09,597.3,10.491]
[1742042430435,0.33439224,598.1,597.3,10.491]
[1742042430636,0.28299814,598.09,597.3,10.491]
[1742042434341,0.28300443,598.08,597.3,10.491]
[1742042434538,0.28300443,598.09,597.3,10.491]
[1742042434737,0.28300443,598.08,597.3,10.491]
[1742042434941,0.28300443,598.09,597.3,10.491]
[1742042435242,0.28300443,598.08,597.3,10.491]
[1742042435437,0.28300443,598.07,597.3,10.491]
[1742042435643,0.28300443,598.09,597.3,10.491]
[1742042435837,0.28300443,598.08,597.3,10.491]
[1742042436142,0.28300443,598.07,597.3,10.491]
[1742042436338,0.28300443,598.09,597.3,10.491]
[1742042436535,0.28300443,598.08,597.3,10.491]
[1742042436737,0.28300443,598.09,597.3,10.491]
[1742042436939,0.28300443,598.08,597.3,10.491]
[1742042437141,0.28300443,598.07,597.3,10.491]
[1742042437341,0.28300443,598.09,597.3,10.491]
[1742042437643,0.28300443,598.08,597.3,10.491]
[1742042437943,0.28300443,598.09,597.3,10.491]
[1742042438144,0.28300443,598.08,597.3,10.491]
[1742042438443,0.28300443,598.09,597.3,10.491]
[1742042438644,0.28300443,598.08,597.3,10.491]
[1742042438943,0.28300443,598.07,597.3,10.491]
[1742042439137,0.28300443,598.09,597.3,10.491]
[1742042439342,0.28300443,598.08,597.3,10.491]
[1742042439537,0.28300443,598.09,597.3,10.491]
[1742042439741,0.33439224,598.1,597.3,10.491]
[1742042439942,0.28300561,598.09,597.3,10.491]
[1742042442543,0.2829992,598.08,597.3,10.491]
[1742042442743,0.2829992,598.07,597.3,10.491]
[1742042442941,0.2829992,598.09,597.3,10.491]
[1742042443142,0.2829992,598.08,597.3,10.491]
[1742042443341,0.2829992,598.09,597.3,10.491]
[1742042443542,0.2829992,598.08,597.3,10.491]
[1742042443743,0.2829992,598.09,597.3,10.491]
[1742042443943,0.2829992,598.08,597.3,10.491]
[1742042444139,0.2829992,598.09,597.3,10.491]
[1742042444446,0.2829992,598.08,597.3,10.491]
[1742042444753,0.2829992,598.07,597.3,10.491]
[1742042444944,0.2829992,598.09,597.3,10.491]
[1742042445247,0.2829992,598.08,597.3,10.491]
[1742042445540,0.2829992,598.07,597.3,10.491]
[1742042445847,0.2829992,598.06,597.3,10.491]
[1742042446044,0.2829992,598.09,597.3,10.491]
[1742042446244,0.2829992,598.08,597.3,10.491]
[1742042446546,0.33439224,598.1,597.3,10.491]
[1742042446547,0.2829992,598.07,597.3,10.491]
[1742042446742,0.2829992,598.06,597.3,10.491]
[1742042446946,0.2829992,598.09,597.3,10.491]
[1742042447140,0.33439224,598.1,597.3,10.491]
[1742042447141,0.2829992,598.05,597.3,10.491]
[1742042447446,0.2829992,598.04,597.3,10.491]
[1742042447647,0.2829992,598.09,597.3,10.491]
[1742042449142,0.28299908,598.08,597.3,10.491]
[1742042449448,0.28299908,598.07,597.3,10.491]
[1742042449749,0.28299908,598.06,597.3,10.491]
[1742042449948,0.28299908,598.09,597.3,10.491]
[1742042450144,0.33439224,598.1,597.3,10.491]
[1742042450145,0.28299908,598.08,597.3,10.491]
[1742042450342,0.28299908,598.09,597.3,10.491]
[1742042450546,0.28299908,598.08,597.3,10.491]
[1742042450745,0.28299908,598.09,597.3,10.491]
[1742042455846,2.55673337,598.08,597.3,10.491]
[1742042456153,0.28299908,598.07,597.3,10.491]
[1742042456353,2.55673337,598.08,597.3,10.491]
[1742042456548,0.28301842,598.07,597.3,10.491]
[1742042458248,2.55673337,598.08,597.3,10.491]
[1742042458249,0.28303994,598.06,597.3,10.491]
[1742042458447,2.55673337,598.08,597.3,10.491]
[1742042458448,0.28303994,598.05,597.3,10.491]
[1742042458954,0.28303994,598.04,597.3,10.491]
[1742042459148,0.28303994,598.03,597.3,10.491]
[1742042459355,0.28303994,598.02,597.3,10.491]
[1742042459654,0.28303994,598.01,597.3,10.491]
[1742042459847,0.28303994,598.07,597.3,10.491]
[1742042460052,0.28303994,598.0,597.3,10.491]
[1742042460250,0.28303994,597.99,597.3,10.491]
[1742042460652,0.28303994,597.98,597.3,10.491]
[1742042460852,0.28303994,598.09,597.3,10.491]
[1742042461052,0.61744336,598.08,597.3,10.491]
[1742042461354,0.28303994,598.07,597.3,10.491]
[1742042463250,0.28303603,598.06,597.3,10.491]
[1742042463455,0.28303603,598.07,597.3,10.491]
[1742042463659,0.28303603,598.06,597.3,10.491]
[1742042463955,0.28303603,598.05,597.3,10.491]
[1742042464258,0.33440342,598.08,597.3,10.491]
[1742042465355,0.28303685,598.07,597.3,10.491]
[1742042465554,0.33440342,598.08,597.3,10.491]
[1742042465858,0.28303931,598.07,597.3,10.491]
[1742042467356,0.33440342,598.08,597.3,10.491]
[1742042469163,0.28304595,598.07,597.3,10.491]
[1742042469355,0.3344146,598.06,597.3,10.491]
[1742042469556,0.28304595,598.05,597.3,10.491]
[1742042469758,0.33442579,598.04,597.3,10.491]
[1742042469958,0.28304595,598.03,597.3,10.491]
[1742042470155,0.33443697,598.02,597.3,10.491]
[1742042470359,0.28304595,598.01,597.3,10.491]
[1742042474069,0.28306061,598.0,597.3,10.491]
[1742042474370,0.28306061,597.99,597.3,10.491]
[1742042474566,0.28306061,598.01,597.3,10.491]
[1742042474770,0.28306061,598.0,597.3,10.491]
[1742042474970,0.28306061,598.01,597.3,10.491]
[1742042475171,0.28306061,598.0,597.3,10.491]
[1742042475371,0.28306061,598.01,597.3,10.491]
[1742042475574,0.28306061,598.0,597.3,10.491]
[1742042475775,0.28303235,597.99,597.3,10.491]
[1742042476073,0.28303235,597.98,597.3,10.491]
[1742042476273,0.28303235,598.01,597.3,10.491]
[1742042476474,0.28303235,598.0,597.3,10.491]
[1742042476775,0.28303235,597.99,597.3,10.491]
[1742042476972,0.28303235,597.98,597.3,10.491]
[1742042477175,0.28303235,597.97,597.3,10.491]
[1742042477374,0.28303235,598.01,597.3,10.491]
[1742042477576,0.28303235,598.0,597.3,10.491]
[1742042477772,0.28303235,598.01,597.3,10.491]
[1742042477970,0.28303235,598.0,597.3,10.491]
[1742042478172,0.28303235,598.01,597.3,10.491]
[1742042478375,0.28303235,598.0,597.3,10.491]
[1742042478570,0.28303235,597.99,597.3,10.491]
[1742042478877,0.33443697,598.02,597.3,10.491]
[1742042478878,0.28303235,597.98,597.3,10.491]
[1742042479076,0.28303235,598.01,597.3,10.491]
[1742042479674,0.2830392,598.0,597.3,10.491]
[1742042479975,0.2830392,597.99,597.3,10.491]
[1742042480176,0.33443697,598.02,597.3,10.491]
[1742042480177,0.2830392,598.01,597.3,10.491]
[1742042480376,0.33443697,598.02,597.3,10.491]
[1742042480377,0.2830392,598.0,597.3,10.491]
[1742042480575,0.2830392,598.01,597.3,10.491]
[1742042480776,0.2830392,598.0,597.3,10.491]
[1742042481077,0.2830392,597.99,597.3,10.491]
[1742042481276,0.33443697,598.02,597.3,10.491]
[1742042481477,0.28303695,598.01,597.3,10.491]
[1742042491185,0.33443697,598.02,597.3,10.491]
[1742042491186,0.28307757,598.0,597.3,10.491]
[1742042491380,0.28307757,597.99,597.3,10.491]
[1742042491587,0.28307757,598.01,597.3,10.491]
[1742042491783,0.28307757,598.0,597.3,10.491]
[1742042491980,0.28307757,598.01,597.3,10.491]
[1742042492182,0.28307757,598.0,597.3,10.491]
[1742042492583,0.28307757,597.99,597.3,10.491]
[1742042492787,0.28307757,598.01,597.3,10.491]
[1742042492988,0.28307757,598.0,597.3,10.491]
[1742042493289,0.28307757,598.01,597.3,10.491]
[1742042493488,0.28307757,598.0,597.3,10.491]
[1742042493783,0.28306487,597.99,597.3,10.491]
[1742042493987,0.28306487,598.01,597.3,10.491]
[1742042494188,0.28306487,598.0,597.3,10.491]
[1742042494582,0.28306487,597.99,597.3,10.491]
[1742042494783,0.28306487,598.01,597.3,10.491]
[1742042494986,0.28306487,598.0,597.3,10.491]
[1742042495186,0.28306487,598.01,597.3,10.491]
[1742042495382,0.28306487,598.0,597.3,10.491]
[1742042495587,0.28306487,598.01,597.3,10.491]
[1742042495783,0.28306487,598.0,597.3,10.491]
[1742042495986,0.28306487,597.99,597.3,10.491]
[1742042496190,0.33443697,598.02,597.3,10.491]
[1742042496391,0.28302775,598.01,597.3,10.491]
[1742042497892,0.33443697,598.02,597.3,10.491]
[1742042498089,0.2830262,598.01,597.3,10.491]
[1742042502791,0.33443697,598.02,597.3,10.491]
[1742042503791,0.28302495,598.01,597.3,10.491]
[1742042504591,0.28302498,598.0,597.3,10.491]
[1742042504791,0.33443697,598.02,597.3,10.491]
[1742042504792,0.28302498,598.01,597.3,10.491]
[1742042504991,0.28302498,598.0,597.3,10.491]
[1742042505292,0.33443697,598.02,597.3,10.491]
[1742042505293,0.28302498,597.99,597.3,10.491]
[1742042505487,0.33443697,598.02,597.3,10.491]
[1742042505488,0.28302498,598.01,597.3,10.491]
[1742042505687,0.33443697,598.02,597.3,10.491]
[1742042505688,0.28302498,598.0,597.3,10.491]
[1742042505890,0.28302498,598.01,597.3,10.491]
[1742042506085,0.28302498,598.0,597.3,10.491]
[1742042506293,0.28302498,598.01,597.3,10.491]
[1742042506592,0.28302498,598.0,597.3,10.491]
[1742042506787,0.28302498,598.01,597.3,10.491]
[1742042506993,0.28302498,597.99,597.3,10.491]
[1742042507189,0.28302498,597.98,597.3,10.491]
[1742042507693,0.28302498,597.97,597.3,10.491]
[1742042507894,0.28302498,598.01,597.3,10.491]
[1742042508094,0.28302498,598.0,597.3,10.491]
[1742042508390,0.28302498,597.99,597.3,10.491]
[1742042508586,0.33443697,598.02,597.3,10.491]
[1742042508791,0.28302553,598.01,597.3,10.491]
[1742042513798,0.28302686,598.0,597.3,10.491]
[1742042514199,0.28302686,597.99,597.3,10.491]
[1742042514398,0.33443697,598.02,597.3,10.491]
[1742042514595,0.2830152,598.01,597.3,10.491]
[1742042515800,0.28301223,598.0,597.3,10.491]
[1742042516001,0.33443697,598.02,597.3,10.491]
[1742042516002,0.28301223,598.01,597.3,10.491]
[1742042516193,0.28301223,598.0,597.3,10.491]
[1742042516397,0.28301223,598.01,597.3,10.491]
[1742042516600,0.28301223,598.0,597.3,10.491]
[1742042516796,0.28301223,598.01,597.3,10.491]
[1742042516997,0.28301223,598.0,597.3,10.491]
[1742042517197,0.28301223,598.01,597.3,10.491]
[1742042522207,0.33443697,598.02,597.3,10.491]
[1742042522805,0.28302055,598.01,597.3,10.491]
[1742042527107,0.33443697,598.02,597.3,10.491]
[1742042527307,0.28301574,598.01,597.3,10.491]
[1742042535717,0.28299334,598.0,597.3,10.491]
[1742042535921,0.28299334,598.01,597.3,10.491]
[1742042539627,0.28299719,598.0,597.3,10.491]
[1742042539819,0.28299719,597.99,597.3,10.491]
[1742042540024,0.28299719,597.98,597.3,10.491]
[1742042540227,0.28299719,598.01,597.3,10.491]
[1742042540428,0.28299719,598.0,597.3,10.491]
[1742042540628,0.28299719,598.01,597.3,10.491]
[1742042541223,0.33443697,598.02,597.3,10.491]
[1742042541527,0.28300277,598.01,597.3,10.491]
[1742042543025,0.33443697,598.02,597.3,10.491]
[1742042543229,0.28299559,598.01,597.3,10.491]
[1742042545032,0.28299601,598.0,597.3,10.491]
[1742042545231,0.28299601,598.01,597.3,10.491]
[1742042548729,0.28299134,598.0,597.3,10.491]
[1742042548934,0.28299134,598.01,597.3,10.491]
[1742042549133,0.28299134,598.0,597.3,10.491]
[1742042549333,0.28299134,598.01,597.3,10.491]
[1742042549529,0.28299134,598.0,597.3,10.491]
[1742042549732,0.28299134,598.01,597.3,10.491]
[1742042549931,0.28299134,598.0,597.3,10.491]
[1742042550136,0.28299134,598.01,597.3,10.491]
[1742042550332,0.33443697,598.02,597.3,10.491]
[1742042550536,0.28299494,598.01,597.3,10.491]
[1742042552431,0.28299173,598.0,597.3,10.491]
[1742042552634,0.28299173,598.01,597.3,10.491]
[1742042552831,0.28299173,598.0,597.3,10.491]
[1742042553033,0.28299173,598.01,597.3,10.491]
[1742042553237,0.28299173,598.0,597.3,10.491]
[1742042553437,0.28299173,598.01,597.3,10.491]
[1742042553634,0.33443697,598.02,597.3,10.491]
[1742042553635,0.28299173,598.0,597.3,10.491]
[1742042553938,0.28299173,597.99,597.3,10.491]
[1742042554238,0.33443697,598.02,597.3,10.491]
[1742042554437,0.28299628,598.01,597.3,10.491]
[1742042558438,0.33443697,598.02,597.3,10.491]
[1742042558637,0.2830002,598.01,597.3,10.491]
[1742042559743,0.33443697,598.02,597.3,10.491]
[1742042560041,0.28300376,598.01,597.3,10.491]
[1742042563939,0.28302067,598.0,597.3,10.491]
[1742042564139,0.28302067,598.01,597.3,10.491]
[1742042564445,0.28302067,598.0,597.3,10.491]
[1742042564844,0.28302067,597.99,597.3,10.491]
[1742042565040,0.28302067,598.01,597.3,10.491]
[1742042565247,0.28302067,598.0,597.3,10.491]
[1742042565444,0.28302067,598.01,597.3,10.491]
[1742042565661,0.33443697,598.02,597.3,10.491]
[1742042565662,0.28302067,598.0,597.3,10.491]
[1742042565845,0.28302067,598.01,597.3,10.491]
[1742042567048,0.33443697,598.02,597.3,10.491]
[1742042567241,0.28302134,598.01,597.3,10.491]
[1742042570646,0.33443697,598.02,597.3,10.491]
[1742042570843,0.28301091,598.01,597.3,10.491]
[1742042581146,0.33443697,598.02,597.3,10.491]
[1742042581351,0.28306089,598.01,597.3,10.491]
[1742042590262,0.33443697,598.02,597.3,10.491]
[1742042590464,0.28304425,598.01,597.3,10.491]
[1742042593759,0.33443697,598.02,597.3,10.491]
[1742042593963,0.28305762,598.0,597.3,10.491]
[1742042594165,0.28305762,597.99,597.3,10.491]
[1742042594360,0.28305762,598.01,597.3,10.491]
[1742042594560,0.28305762,598.0,597.3,10.491]
[1742042594763,0.28305762,598.01,597.3,10.491]
[1742042594963,0.28305762,598.0,597.3,10.491]
[1742042595165,0.28305762,598.01,597.3,10.491]
[1742042595361,0.28305762,598.0,597.3,10.491]
[1742042595560,0.28305762,598.01,597.3,10.491]
[1742042595765,0.33443697,598.02,597.3,10.491]
[1742042595965,0.28306579,598.01,597.3,10.491]
[1742042597868,0.28307848,598.0,597.3,10.491]
[1742042598065,0.28307848,598.01,597.3,10.491]
[1742042598364,0.28307848,598.0,597.3,10.491]
[1742042598562,0.28307848,597.99,597.3,10.491]
[1742042598762,0.28307848,598.01,597.3,10.491]
[1742042601166,0.33443697,598.02,597.3,10.491]
[1742042601167,0.28306325,598.0,597.3,10.491]
[1742042601366,0.33443697,598.02,597.3,10.491]
[1742042601367,0.28306325,598.01,597.3,10.491]
[1742042601861,0.28306343,598.0,597.3,10.491]
[1742042602065,0.28306343,598.01,597.3,10.491]
[1742042602266,0.28306343,598.0,597.3,10.491]
[1742042602465,0.28306343,598.01,597.3,10.491]
[1742042602664,0.28306343,598.0,597.3,10.491]
[1742042602863,0.28306343,598.01,597.3,10.491]
[1742042603065,0.28306343,597.99,597.3,10.491]
[1742042603272,0.28306343,597.98,597.3,10.491]
[1742042603465,0.28306343,598.01,597.3,10.491]
[1742042613979,0.33443697,598.02,597.3,10.491]
[1742042614186,0.28308003,598.01,597.3,10.491]
[1742042615884,0.28306123,598.0,597.3,10.491]
[1742042616079,0.28306123,598.01,597.3,10.491]
[1742042616280,0.33443697,598.02,597.3,10.491]
[1742042616281,0.28306123,598.0,597.3,10.491]
[1742042616480,0.28306123,598.01,597.3,10.491]
[1742042616679,0.28306123,598.0,597.3,10.491]
[1742042616882,0.28306123,598.01,597.3,10.491]
[1742042617084,0.28306123,598.0,597.3,10.491]
[1742042617284,0.28306123,598.01,597.3,10.491]
[1742042617484,0.28306123,598.0,597.3,10.491]
[1742042617786,0.28306123,598.01,597.3,10.491]
[1742042617980,0.28306123,598.0,597.3,10.491]
[1742042618177,0.28306123,598.01,597.3,10.491]
[1742042618379,0.28306123,598.0,597.3,10.491]
[1742042618585,0.28306123,598.01,597.3,10.491]
[1742042621186,0.33443697,598.02,597.3,10.491]
[1742042621391,0.28307654,598.01,597.3,10.491]
[1742042621891,0.6175191,598.01,597.3,10.491]
[1742042622086,0.6175247,598.0,597.3,10.491]
[1742042622286,0.61753029,597.99,597.3,10.491]
[1742042622488,0.28307654,597.98,597.3,10.491]
[1742042623087,0.28310754,597.97,597.3,10.491]
[1742042623487,0.28310754,597.96,597.3,10.491]
[1742042623685,0.28310754,597.98,597.3,10.491]
[1742042624092,0.28310946,597.97,597.3,10.491]
[1742042624287,0.28310946,597.96,597.3,10.491]
[1742042624490,0.28310946,597.98,597.3,10.491]
[1742042624689,0.28310946,597.97,597.3,10.491]
[1742042624889,0.28310946,597.96,597.3,10.491]
[1742042625088,0.33445375,597.99,597.3,10.491]
[1742042625288,0.28310929,597.98,597.3,10.491]
[1742042638591,0.2830926,597.97,597.3,10.491]
[1742042638796,0.2830926,597.98,597.3,10.491]
[1742042638994,0.2830926,597.96,597.3,10.491]
[1742042639191,0.2830926,597.95,597.3,10.491]
[1742042639392,0.2830926,597.94,597.3,10.491]
[1742042639589,0.2830926,597.98,597.3,10.491]
[1742042642999,0.28309075,597.97,597.3,10.491]
[1742042643196,0.28309075,597.98,597.3,10.491]
[1742042643396,0.28309075,597.97,597.3,10.491]
[1742042643598,0.28309075,597.98,597.3,10.491]
[1742042643800,0.28309075,597.97,597.3,10.491]
[1742042644101,0.28309075,597.96,597.3,10.491]
[1742042644298,0.28309075,597.98,597.3,10.491]
[1742042644700,0.33445375,597.99,597.3,10.491]
[1742042644896,0.28310472,597.98,597.3,10.491]
[1742042645301,0.33446493,597.97,597.3,10.491]
[1742042645600,0.28310472,597.96,597.3,10.491]
[1742042645801,0.61757525,597.96,597.3,10.491]
[1742042646005,0.28310472,597.95,597.3,10.491]
[1742042652405,2.83983809,597.95,597.3,10.491]
[1742042652606,0.28310472,597.94,597.3,10.491]
[1742042654302,2.55673337,597.92,597.3,10.491]
[1742042654506,0.28310472,597.91,597.3,10.491]
[1742042655705,2.55673337,597.89,597.3,10.491]
[1742042655909,0.28310472,597.88,597.3,10.491]
[1742042657709,2.83983809,597.88,597.3,10.491]
[1742042658012,0.28310472,597.87,597.3,10.491]
[1742042659607,2.55673337,597.88,597.3,10.491]
[1742042659807,0.28310115,597.87,597.3,10.491]
[1742042660004,0.28310115,597.95,597.3,10.491]
[1742042665307,0.28310234,597.94,597.3,10.491]
[1742042665512,0.28310234,597.95,597.3,10.491]
[1742042665709,0.28310234,597.94,597.3,10.491]
[1742042666015,0.28310234,597.93,597.3,10.491]
[1742042666214,0.28310234,597.95,597.3,10.491]
[1742042669010,0.33447053,597.96,597.3,10.491]
[1742042669213,0.28310949,597.95,597.3,10.491]
[1742042670011,0.33448172,597.94,597.3,10.491]
[1742042670317,0.28310949,597.93,597.3,10.491]
[1742042670719,0.3344929,597.92,597.3,10.491]
[1742042670919,0.28310949,597.91,597.3,10.491]
[1742042671118,0.33450409,597.9,597.3,10.491]
[1742042671315,0.28310949,597.89,597.3,10.491]
[1742042672720,0.33450409,597.9,597.3,10.491]
[1742042672923,0.28316342,597.89,597.3,10.491]
[1742042680025,0.33450409,597.9,597.3,10.491]
[1742042680221,0.28316144,597.89,597.3,10.491]
[1742042680426,0.33451528,597.88,597.3,10.491]
[1742042680626,0.28316144,597.87,597.3,10.491]
[1742042680826,0.61768232,597.87,597.3,10.491]
[1742042681028,0.28316144,597.86,597.3,10.491]
[1742042682723,0.33453207,597.85,597.3,10.491]
[1742042682929,0.28316144,597.84,597.3,10.491]
[1742042683129,0.33454326,597.83,597.3,10.491]
[1742042683331,0.28316144,597.82,597.3,4.676]
[1742042683529,0.33455445,597.81,596.43,0.29141335]
[1742042683830,0.2831453,597.8,596.44,0.64306175]
[1742042684028,0.2831453,597.8,596.45,0.64305613]
[1742042684328,0.2831453,597.8,596.46,0.64305051]
[1742042684522,0.2831453,597.8,596.47,0.64304489]
[1742042684726,0.2831453,597.8,596.48,0.64303926]
[1742042684930,0.2831453,597.8,596.49,0.64303364]
[1742042685130,0.2831453,597.8,596.5,0.64302802]
[1742042685330,0.2831453,597.8,596.51,0.6430224]
[1742042685530,0.2831453,597.8,596.52,0.64301678]
[1742042685725,0.33455445,597.81,596.53,0.33527232]
[1742042685924,0.28314371,597.8,596.54,0.30773662]
[1742042686124,0.28314371,597.8,596.55,0.33526108]
[1742042686724,0.28314371,597.8,596.55,1.67826108]
[1742042687229,0.28314371,597.8,596.55,2.70326108]
[1742042687426,0.28314371,597.8,596.55,2.89526108]
[1742042687629,0.33455445,597.81,596.55,2.89526108]
[1742042687832,0.28314071,597.79,596.56,0.30772943]
[1742042688027,0.33455445,597.81,596.56,0.30772943]
[1742042688028,0.28314071,597.78,596.57,0.33524984]
[1742042688227,0.28314071,597.8,596.57,0.33524984]
[1742042688434,0.28314071,597.79,596.57,0.33524984]
[1742042688632,0.28314071,597.8,596.57,0.33524984]
[1742042688938,0.28314071,597.79,596.57,0.33524984]
[1742042689241,0.28314071,597.8,596.57,0.33524984]
[1742042689537,0.28314071,597.79,596.57,0.33524984]
[1742042689737,0.28314071,597.8,596.57,0.33524984]
[1742042689934,0.33455445,597.81,596.57,0.33524984]
[1742042689935,0.28314071,597.79,596.57,0.33524984]
[1742042690132,0.28314071,597.78,596.57,0.33524984]
[1742042690335,0.28314071,597.8,596.57,0.33524984]
[1742042690532,0.33455445,597.81,596.57,0.33524984]
[1742042690533,0.28314071,597.79,596.57,0.33524984]
[1742042690838,0.28314071,597.78,596.57,0.33524984]
[1742042691137,0.28314071,597.77,596.58,0.30772569]
[1742042691334,0.28313244,597.76,596.57,0.33524984]
[1742042691540,0.28313244,597.8,596.58,0.30772179]
[1742042691739,0.28313244,597.75,596.58,0.30772179]
[1742042691940,0.28313244,597.74,596.58,0.30772179]
[1742042692134,0.28313244,597.8,596.58,0.30772179]
[1742042692337,0.28313244,597.79,596.58,0.30772179]
[1742042692536,0.28313244,597.8,596.58,0.30772179]
[1742042692739,0.28313244,597.79,596.58,0.30772179]
[1742042692936,0.28313244,597.78,596.58,0.30772179]
[1742042693137,0.28313244,597.8,596.58,0.30772179]
[1742042693338,0.28313244,597.79,596.58,0.30772179]
[1742042693537,0.28313244,597.78,596.58,0.30772179]
[1742042693738,0.28313244,597.8,596.58,0.30772179]
[1742042693935,0.28313244,597.79,596.58,0.30772179]
[1742042694140,0.28313244,597.78,596.58,0.30772179]
[1742042694338,0.28313244,597.8,596.58,0.30772179]
[1742042694536,0.28313244,597.79,596.58,0.30772179]
[1742042694740,0.28313244,597.8,596.58,0.30772179]
[1742042694941,0.28313244,597.79,596.58,0.30772179]
[1742042695138,0.28313244,597.8,596.58,0.30772179]
[1742042695438,0.28313244,597.79,596.58,0.30772179]
[1742042695743,0.28313244,597.78,596.58,0.30772179]
[1742042695945,0.28313244,597.8,596.58,0.30772179]
[1742042696248,0.28313244,597.79,596.58,0.30772179]
[1742042696445,0.28313244,597.78,596.58,0.30772179]
[1742042696640,0.28313244,597.77,596.58,0.30772179]
[1742042696840,0.33455445,597.81,596.57,0.33524984]
[1742042697046,0.28312843,597.8,596.58,0.30772154]
[1742042700641,0.33455445,597.81,596.57,0.33524984]
[1742042700841,0.2830768,597.8,596.58,0.30766938]
[1742042701244,0.2830768,597.8,596.59,0.3352386]
[1742042701447,0.2830768,597.8,596.6,0.30766938]
[1742042701644,0.2830768,597.8,596.61,0.33522736]
[1742042702045,0.2830792,597.79,596.62,0.30767175]
[1742042702352,0.2830792,597.78,596.62,0.30767175]
[1742042702648,0.2830792,597.77,596.63,1.57721613]
[1742042702848,0.2830792,597.8,596.64,0.64288226]
[1742042703052,0.2830792,597.79,596.65,0.64287664]
[1742042703248,0.2830792,597.8,596.66,0.64287102]